[Event "44th Chess Olympiad Women 2022"]
[Site "Chennai"]
[Date "2022.08.08"]
[Round "10.53"]
[White "Nakabo, Peninah"]
[Black "Haile, Lidet Abate"]
[Result "1/2-1/2"]
[WhiteElo "1747"]
[BlackElo "1624"]
[Annotator "NA RC"]
[PlyCount "203"]
[EventDate "2022.??.??"]
[TimeControl "60"]

1. e4 {[%emt 0:00:04]} e5 {[%emt 0:00:42]} 2. Nf3 {[%emt 0:05:48]} Nc6 {
[%emt 0:00:11]} 3. d4 {[%emt 0:00:09]} exd4 {[%emt 0:00:21]} 4. Nxd4 {[%emt 0:
00:00]} d6 {[%emt 0:00:49]} 5. Nc3 {[%emt 0:00:14]} Nf6 {[%emt 0:00:25]} 6. Be3
{[%emt 0:00:46]} Be7 {[%emt 0:02:06]} 7. f3 {[%emt 0:00:15]} a6 {[%emt 0:01:00]
} 8. Qd2 {[%emt 0:00:08]} Nxd4 {[%emt 0:01:14]} 9. Bxd4 {[%emt 0:00:17]} Be6 {
[%emt 0:00:18]} 10. g4 {[%emt 0:02:40]} h6 {[%emt 0:02:31]} 11. O-O-O {[%emt 0:
00:00]} Qd7 {[%emt 0:04:04]} 12. h3 {[%emt 0:02:19]} O-O-O {[%emt 0:04:45]} 13.
f4 {[%emt 0:00:18]} Qe8 {[%emt 0:05:07]} 14. f5 {[%emt 0:01:25]} Bd7 {[%emt 0:
00:00]} 15. Kb1 {[%emt 0:01:42]} Bc6 {[%emt 0:00:23]} 16. Bd3 {[%emt 0:00:17]}
Rg8 {[%emt 0:01:30]} 17. Rhe1 {[%emt 0:01:55]} Nd7 {[%emt 0:02:30]} 18. Nd5 {
[%emt 0:02:59]} Bxd5 {[%emt 0:02:21]} 19. exd5 {[%emt 0:00:11]} Qf8 {[%emt 0:
00:00]} 20. Qa5 {[%emt 0:00:25]} Bf6 {[%emt 0:15:34]} 21. Bf2 {[%emt 0:03:53]}
Ne5 {[%emt 0:03:31]} 22. Bf1 {[%emt 0:10:42]} Re8 {[%emt 0:03:21]} 23. Re3 {
[%emt 0:07:29]} Kd7 {[%emt 0:13:18]} 24. Qa4+ {[%emt 0:00:44]} c6 {[%emt 0:00:
00]} 25. dxc6+ {[%emt 0:00:21]} Nxc6 {[%emt 0:01:09]} 26. Red3 {[%emt 0:00:26]}
Be5 {[%emt 0:02:59]} 27. Bg2 {[%emt 0:02:12]} Rc8 {[%emt 0:01:00]} 28. Rxd6+ {
[%emt 0:03:18]} Bxd6 {[%emt 0:05:49]} 29. Bg3 {[%emt 0:01:18]} Kc7 {[%emt 0:00:
00]} 30. Bxd6+ {[%emt 0:01:18]} Qxd6 {[%emt 0:00:17]} 31. Rxd6 {[%emt 0:00:13]}
Kxd6 {[%emt 0:00:02]} 32. Qf4+ {[%emt 0:01:31]} Kc5 {[%emt 0:01:10]} 33. a3 {
[%emt 0:02:38]} f6 {[%emt 0:05:45]} 34. Qe3+ {[%emt 0:01:25]} Kd6 {[%emt 0:00:
00]} 35. Qe6+ {[%emt 0:01:45]} Kc7 {[%emt 0:00:18]} 36. c4 {[%emt 0:04:07]} Kb6
{[%emt 0:01:12]} 37. Qe3+ {[%emt 0:00:44]} Kc7 {[%emt 0:00:23]} 38. c5 {
[%emt 0:00:45]} Kb8 {[%emt 0:02:48]} 39. Bxc6 {[%emt 0:03:05]} Rxc6 {[%emt 0:
00:00]} 40. b4 {[%emt 0:00:44]} Rd8 {[%emt 0:01:32]} 41. Kb2 {[%emt 0:33:42]}
Rc7 {[%emt 0:30:29]} 42. Kc3 {[%emt 0:01:18]} b6 {[%emt 0:00:37]} 43. Kc4 {
[%emt 0:00:45]} bxc5 {[%emt 0:01:21]} 44. bxc5 {[%emt 0:00:12]} Rdc8 {[%emt 0:
00:00]} 45. a4 {[%emt 0:00:41]} Rc6 {[%emt 0:01:19]} 46. a5 {[%emt 0:01:06]}
R8c7 {[%emt 0:00:24]} 47. Kd5 {[%emt 0:02:57]} Kb7 {[%emt 0:00:47]} 48. h4 {
[%emt 0:01:23]} Rd7+ {[%emt 0:00:13]} 49. Kc4 {[%emt 0:00:29]} Rdc7 {[%emt 0:
00:00]} 50. Qb3+ {[%emt 0:02:47]} Kc8 {[%emt 0:00:37]} 51. Qb4 {[%emt 0:00:48]}
Rb7 {[%emt 0:01:53]} 52. Qe1 {[%emt 0:02:23]} Rbc7 {[%emt 0:00:09]} 53. Qe8+ {
[%emt 0:00:13]} Kb7 {[%emt 0:00:08]} 54. Qe3 {[%emt 0:00:11]} Kc8 {[%emt 0:00:
00]} 55. Kd5 {[%emt 0:00:00]} Kb7 {[%emt 0:00:00]} 56. Kc4 {[%emt 0:00:00]} Kc8
{[%emt 0:00:00]} 57. Qa3 {[%emt 0:00:00]} Kb7 {[%emt 0:00:00]} 58. Qb4+ {
[%emt 0:00:00]} Kc8 {[%emt 0:00:00]} 59. Kd5 {[%emt 0:00:00]} Kd8 {[%emt 0:00:
00]} 60. Qb8+ {[%emt 0:00:00]} Ke7 {[%emt 0:00:00]} 61. Kd4 {[%emt 0:00:00]}
Rxc5 {[%emt 0:00:00]} 62. Qb4 {[%emt 0:00:00]} Kd6 {[%emt 0:00:00]} 63. Qb6+ {
[%emt 0:00:18]} R5c6 {[%emt 0:00:00]} 64. Qb3 {[%emt 0:00:32]} Kd7 {[%emt 0:00:
00]} 65. Qg8 {[%emt 0:00:45]} Rd6+ {[%emt 0:00:00]} 66. Ke4 {[%emt 0:00:49]}
Kc6 {[%emt 0:00:00]} 67. Qc4+ {[%emt 0:02:47]} Kd7 {[%emt 0:00:00]} 68. Qf7+ {
[%emt 0:00:13]} Kc8 {[%emt 0:00:00]} 69. Qf8+ {[%emt 0:01:47]} Rd8 {[%emt 0:00:
00]} 70. Qb4 {[%emt 0:00:33]} Rc6 {[%emt 0:00:00]} 71. Kf4 {[%emt 0:02:09]}
Rcd6 {[%emt 0:00:00]} 72. Qc5+ {[%emt 0:01:29]} Kb7 {[%emt 0:00:00]} 73. Qb4+ {
[%emt 0:01:20]} Ka7 {[%emt 0:00:00]} 74. Qc5+ {[%emt 0:00:28]} Ka8 {[%emt 0:00:
00]} 75. Qc7 {[%emt 0:07:43]} R8d7 {[%emt 0:01:21]} 76. Qc8+ {[%emt 0:00:18]}
Ka7 {[%emt 0:00:00]} 77. Qc5+ {[%emt 0:00:28]} Kb8 {[%emt 0:00:02]} 78. g5 {
[%emt 0:02:07]} hxg5+ {[%emt 0:01:08]} 79. hxg5 {[%emt 0:00:07]} fxg5+ {
[%emt 0:01:43]} 80. Kxg5 {[%emt 0:00:29]} Rf6 {[%emt 0:00:15]} 81. Qe5+ {
[%emt 0:02:28]} Kc8 {[%emt 0:00:57]} 82. Qc5+ {[%emt 0:01:43]} Kd8 {[%emt 0:00:
00]} 83. Qe5 {[%emt 0:00:55]} Re7 {[%emt 0:01:15]} 84. Qb8+ {[%emt 0:00:36]}
Kd7 {[%emt 0:00:07]} 85. Qa8 {[%emt 0:00:37]} Ref7 {[%emt 0:01:47]} 86. Qb7+ {
[%emt 0:01:16]} Kd8 {[%emt 0:00:45]} 87. Qb8+ {[%emt 0:00:22]} Kd7 {[%emt 0:00:
00]} 88. Qb7+ {[%emt 0:00:09]} Kd6 {[%emt 0:04:07]} 89. Qxa6+ {[%emt 0:00:16]}
Kc5 {[%emt 0:00:02]} 90. Qd3 {[%emt 0:02:54]} Kb4 {[%emt 0:01:18]} 91. a6 {
[%emt 0:04:51]} Ka5 {[%emt 0:00:44]} 92. Qa3+ {[%emt 0:02:00]} Kb6 {[%emt 0:00:
00]} 93. a7 {[%emt 0:01:10]} Rxa7 {[%emt 0:00:09]} 94. Qe3+ {[%emt 0:00:18]}
Kb7 {[%emt 0:00:09]} 95. Qe7+ {[%emt 0:00:21]} Kb6 {[%emt 0:00:07]} 96. Qe3+ {
[%emt 0:00:14]} Ka6 {[%emt 0:00:03]} 97. Qa3+ {[%emt 0:00:15]} Kb7 {[%emt 0:00:
00]} 98. Qe7+ {[%emt 0:00:08]} Ka8 {[%emt 0:00:20]} 99. Qd8+ {[%emt 0:00:55]}
Kb7 {[%emt 0:00:06]} 100. Qd7+ {[%emt 0:00:19]} Kb6 {[%emt 0:00:47]} 101. Qd4+
{[%emt 0:00:12]} Ka6 {[%emt 0:01:07]} 102. Qa4+ {[%emt 0:00:08]} 1/2-1/2

[Event "44th Chess Olympiad Women 2022"]
[Site "Chennai"]
[Date "2022.08.08"]
[Round "10.54"]
[White "Curwin, Nickaylah"]
[Black "Bouzana, Christina"]
[Result "1/2-1/2"]
[WhiteElo "1499"]
[BlackElo "1079"]
[Annotator "NA RC"]
[PlyCount "86"]
[EventDate "2022.??.??"]
[TimeControl "60"]

1. d4 {[%emt 0:00:04]} Nf6 {[%emt 0:00:05]} 2. Bf4 {[%emt 0:00:08]} d5 {
[%emt 0:00:08]} 3. Nf3 {[%emt 0:00:26]} c5 {[%emt 0:00:22]} 4. e3 {[%emt 0:00:
00]} Nc6 {[%emt 0:00:08]} 5. Nbd2 {[%emt 0:00:46]} Nh5 {[%emt 0:00:23]} 6. Bg3
{[%emt 0:01:13]} Nxg3 {[%emt 0:00:09]} 7. hxg3 {[%emt 0:00:06]} Bf5 {[%emt 0:
00:00]} 8. c3 {[%emt 0:01:22]} Bg4 {[%emt 0:04:59]} 9. Bd3 {[%emt 0:00:38]} h6
{[%emt 0:01:20]} 10. Qa4 {[%emt 0:04:33]} Bd7 {[%emt 0:04:24]} 11. Qc2 {
[%emt 0:02:52]} e6 {[%emt 0:02:29]} 12. O-O {[%emt 0:03:15]} Be7 {[%emt 0:00:
00]} 13. Rfe1 {[%emt 0:01:35]} O-O {[%emt 0:00:28]} 14. Qd1 {[%emt 0:01:44]}
Qc7 {[%emt 0:05:40]} 15. Rc1 {[%emt 0:02:22]} c4 {[%emt 0:03:23]} 16. Bb1 {
[%emt 0:01:55]} b5 {[%emt 0:02:29]} 17. e4 {[%emt 0:01:39]} Rfe8 {[%emt 0:00:
00]} 18. exd5 {[%emt 0:00:37]} exd5 {[%emt 0:00:08]} 19. Ne5 {[%emt 0:01:32]}
Nxe5 {[%emt 0:06:10]} 20. Rxe5 {[%emt 0:00:23]} Qc6 {[%emt 0:04:24]} 21. Qc2 {
[%emt 0:02:20]} g6 {[%emt 0:00:22]} 22. Rce1 {[%emt 0:01:29]} Bf6 {[%emt 0:00:
00]} 23. R5e2 {[%emt 0:02:50]} Bf5 {[%emt 0:02:07]} 24. Qc1 {[%emt 0:01:26]}
Bxb1 {[%emt 0:00:22]} 25. Nxb1 {[%emt 0:00:10]} Rxe2 {[%emt 0:00:53]} 26. Rxe2
{[%emt 0:00:09]} Re8 {[%emt 0:00:16]} 27. Qe1 {[%emt 0:01:57]} Re6 {[%emt 0:00:
00]} 28. Nd2 {[%emt 0:04:10]} Rxe2 {[%emt 0:00:46]} 29. Qxe2 {[%emt 0:00:08]}
Qe6 {[%emt 0:00:26]} 30. Qd1 {[%emt 0:06:41]} a5 {[%emt 0:04:41]} 31. Nf1 {
[%emt 0:04:48]} Qd7 {[%emt 0:08:34]} 32. Qf3 {[%emt 0:00:16]} Bg5 {[%emt 0:00:
00]} 33. Qd1 {[%emt 0:10:16]} Qe8 {[%emt 0:12:25]} 34. f4 {[%emt 0:02:37]} Bd8
{[%emt 0:01:37]} 35. Kf2 {[%emt 0:00:46]} b4 {[%emt 0:10:32]} 36. Ne3 {[%emt 0:
00:00]} bxc3 {[%emt 0:00:50]} 37. bxc3 {[%emt 0:00:32]} Qb5 {[%emt 0:00:30]}
38. a4 {[%emt 0:08:17]} Qb2+ {[%emt 0:03:29]} 39. Qc2 {[%emt 0:00:12]} Qb3 {
[%emt 0:01:23]} 40. Kf3 {[%emt 0:00:26]} Kg7 {[%emt 0:02:02]} 41. Ke2 {[%emt 0:
00:00]} Qb7 {[%emt 0:31:24]} 42. Kf2 {[%emt 0:02:59]} Qb3 {[%emt 0:01:42]} 43.
Ke2 {[%emt 0:00:50]} Qb7 {[%emt 0:00:07]} 1/2-1/2

[Event "44th Chess Olympiad Women 2022"]
[Site "Chennai"]
[Date "2022.08.08"]
[Round "10.54"]
[White "Ioannides Liu, Alice"]
[Black "Clarke, Adani"]
[Result "0-1"]
[WhiteElo "1292"]
[BlackElo "1812"]
[Annotator "NA RC"]
[PlyCount "106"]
[EventDate "2022.??.??"]
[TimeControl "60"]

1. e4 {[%emt 0:00:03]} e6 {[%emt 0:00:06]} 2. d3 {[%emt 0:00:02]} d5 {[%emt 0:
00:00]} 3. Nd2 {[%emt 0:00:20]} c5 {[%emt 0:00:08]} 4. Ngf3 {[%emt 0:00:22]}
Nc6 {[%emt 0:00:13]} 5. g3 {[%emt 0:00:52]} Nf6 {[%emt 0:00:23]} 6. Bg2 {
[%emt 0:00:20]} Be7 {[%emt 0:00:24]} 7. O-O {[%emt 0:00:13]} b5 {[%emt 0:00:06]
} 8. Re1 {[%emt 0:00:49]} a5 {[%emt 0:00:19]} 9. e5 {[%emt 0:18:32]} Nd7 {
[%emt 0:00:07]} 10. c3 {[%emt 0:02:25]} b4 {[%emt 0:03:17]} 11. d4 {[%emt 0:00:
00]} Qb6 {[%emt 0:03:06]} 12. Nf1 {[%emt 0:07:06]} bxc3 {[%emt 0:04:27]} 13.
bxc3 {[%emt 0:00:09]} cxd4 {[%emt 0:00:07]} 14. cxd4 {[%emt 0:00:31]} Bb4 {
[%emt 0:00:37]} 15. Rb1 {[%emt 0:03:57]} Qa7 {[%emt 0:01:26]} 16. Re3 {[%emt 0:
00:00]} Nb6 {[%emt 0:01:05]} 17. a3 {[%emt 0:02:28]} Be7 {[%emt 0:00:18]} 18.
Rc3 {[%emt 0:01:09]} Bd7 {[%emt 0:01:52]} 19. Bg5 {[%emt 0:06:13]} Bxg5 {
[%emt 0:03:14]} 20. Nxg5 {[%emt 0:00:08]} h6 {[%emt 0:00:06]} 21. Qh5 {[%emt 0:
00:00]} O-O {[%emt 0:00:25]} 22. Nf3 {[%emt 0:01:04]} Nc4 {[%emt 0:02:24]} 23.
Rd1 {[%emt 0:04:05]} f6 {[%emt 0:10:27]} 24. Ne3 {[%emt 0:05:57]} Nxe3 {
[%emt 0:06:38]} 25. Rxe3 {[%emt 0:00:11]} f5 {[%emt 0:06:44]} 26. g4 {[%emt 0:
00:00]} Be8 {[%emt 0:05:11]} 27. Qh3 {[%emt 0:03:31]} fxg4 {[%emt 0:01:21]} 28.
Qxg4 {[%emt 0:00:15]} Qf7 {[%emt 0:00:10]} 29. Bh3 {[%emt 0:03:45]} Bd7 {
[%emt 0:00:46]} 30. Qg2 {[%emt 0:00:41]} Qf4 {[%emt 0:01:56]} 31. Qg3 {[%emt 0:
00:00]} Rab8 {[%emt 0:02:31]} 32. Qg6 {[%emt 0:10:43]} Kh8 {[%emt 0:13:20]} 33.
Bxe6 {[%emt 0:01:52]} Ne7 {[%emt 0:00:17]} 34. Qg2 {[%emt 0:07:59]} Bxe6 {
[%emt 0:00:33]} 35. h3 {[%emt 0:01:06]} Bf5 {[%emt 0:09:12]} 36. Ne1 {[%emt 0:
00:00]} Be4 {[%emt 0:01:45]} 37. Qg3 {[%emt 0:00:13]} Qxg3+ {[%emt 0:03:41]}
38. Rxg3 {[%emt 0:00:09]} Nf5 {[%emt 0:00:36]} 39. Rc3 {[%emt 0:02:42]} Rfc8 {
[%emt 0:05:09]} 40. Rxc8+ {[%emt 0:00:30]} Rxc8 {[%emt 0:00:07]} 41. Rd2 {
[%emt 0:33:28]} Rc1 {[%emt 0:32:43]} 42. Kf1 {[%emt 0:00:00]} Nh4 {[%emt 0:00:
00]} 43. Ke2 {[%emt 0:00:00]} Rxe1+ {[%emt 0:00:00]} 44. Kxe1 {[%emt 0:00:00]}
Nf3+ {[%emt 0:00:00]} 45. Ke2 {[%emt 0:00:00]} Nxd2 {[%emt 0:00:00]} 46. Kxd2 {
[%emt 0:00:00]} Kh7 {[%emt 0:00:00]} 47. Ke3 {[%emt 0:00:00]} Kg6 {[%emt 0:00:
00]} 48. Kf4 {[%emt 0:00:00]} Bf5 {[%emt 0:00:00]} 49. Kg3 {[%emt 0:00:00]} Kg5
{[%emt 0:00:00]} 50. f3 {[%emt 0:00:00]} Be6 {[%emt 0:00:00]} 51. h4+ {[%emt 0:
00:00]} Kh5 {[%emt 0:00:00]} 52. f4 {[%emt 0:00:00]} Bf5 {[%emt 0:00:00]} 53.
Kf3 {[%emt 0:00:00]} Kxh4 {[%emt 0:00:00]} 0-1

[Event "44th Chess Olympiad Women 2022"]
[Site "Chennai"]
[Date "2022.08.08"]
[Round "10.54"]
[White "Miller, Rachel"]
[Black "Markidou, Christianna"]
[Result "1-0"]
[WhiteElo "1961"]
[BlackElo "1701"]
[Annotator "NA RC"]
[PlyCount "51"]
[EventDate "2022.??.??"]
[TimeControl "60"]

1. e4 {[%emt 0:00:03]} e5 {[%emt 0:00:07]} 2. Nf3 {[%emt 0:00:08]} Nc6 {
[%emt 0:00:06]} 3. Bc4 {[%emt 0:00:17]} Be7 {[%emt 0:01:11]} 4. O-O {[%emt 0:
00:00]} d6 {[%emt 0:01:29]} 5. c3 {[%emt 0:03:27]} Nf6 {[%emt 0:00:27]} 6. Re1
{[%emt 0:02:26]} O-O {[%emt 0:01:33]} 7. d3 {[%emt 0:01:19]} Na5 {[%emt 0:00:
00]} 8. Bb5 {[%emt 0:00:30]} a6 {[%emt 0:01:28]} 9. Ba4 {[%emt 0:00:12]} b5 {
[%emt 0:01:28]} 10. Bc2 {[%emt 0:00:08]} c5 {[%emt 0:01:02]} 11. Nbd2 {[%emt 0:
00:00]} Nc6 {[%emt 0:00:26]} 12. Nf1 {[%emt 0:01:16]} Bg4 {[%emt 0:03:56]} 13.
h3 {[%emt 0:00:44]} Be6 {[%emt 0:01:09]} 14. Ng3 {[%emt 0:06:08]} Qc7 {[%emt 0:
00:00]} 15. Qe2 {[%emt 0:07:12]} b4 {[%emt 0:08:37]} 16. c4 {[%emt 0:01:33]}
Nd7 {[%emt 0:07:55]} 17. Ba4 {[%emt 0:01:32]} Nb6 {[%emt 0:00:53]} 18. Bxc6 {
[%emt 0:04:49]} Qxc6 {[%emt 0:00:13]} 19. Nf5 {[%emt 0:02:30]} Bxf5 {[%emt 0:
00:00]} 20. exf5 {[%emt 0:02:50]} f6 {[%emt 0:00:24]} 21. Nh4 {[%emt 0:05:21]}
Rf7 {[%emt 0:02:01]} 22. Qh5 {[%emt 0:02:07]} d5 {[%emt 0:08:00]} 23. Ng6 {
[%emt 0:03:21]} dxc4 {[%emt 0:01:40]} 24. Re4 {[%emt 0:00:15]} Nd7 {[%emt 0:00:
00]} 25. Qxh7+ {[%emt 0:00:09]} Kxh7 {[%emt 0:00:37]} 26. Rh4+ {[%emt 0:00:04]}
1-0

[Event "44th Chess Olympiad Women 2022"]
[Site "Chennai"]
[Date "2022.08.08"]
[Round "10.54"]
[White "Sokolova, Victoria"]
[Black "Watson, Gabriella"]
[Result "1/2-1/2"]
[WhiteElo "1193"]
[BlackElo "1164"]
[Annotator "NA RC"]
[PlyCount "111"]
[EventDate "2022.??.??"]
[TimeControl "60"]

1. e4 {[%emt 0:00:15]} c6 {[%emt 0:00:07]} 2. Nf3 {[%emt 0:00:06]} d5 {[%emt 0:
00:00]} 3. Nc3 {[%emt 0:00:14]} dxe4 {[%emt 0:00:36]} 4. Nxe4 {[%emt 0:00:06]}
Bf5 {[%emt 0:00:18]} 5. Ng3 {[%emt 0:00:13]} Bg6 {[%emt 0:00:14]} 6. h4 {
[%emt 0:00:21]} h6 {[%emt 0:00:19]} 7. Ne5 {[%emt 0:00:09]} Qd6 {[%emt 0:02:29]
} 8. Nxg6 {[%emt 0:01:49]} Qxg6 {[%emt 0:01:15]} 9. d4 {[%emt 0:00:35]} Nd7 {
[%emt 0:02:07]} 10. Be3 {[%emt 0:00:57]} Qd6 {[%emt 0:03:28]} 11. Qd2 {[%emt 0:
00:00]} e6 {[%emt 0:02:37]} 12. O-O-O {[%emt 0:02:37]} Ngf6 {[%emt 0:02:49]}
13. Bf4 {[%emt 0:00:40]} Qb4 {[%emt 0:05:01]} 14. c3 {[%emt 0:02:40]} Qa5 {
[%emt 0:00:48]} 15. Kb1 {[%emt 0:00:44]} Be7 {[%emt 0:01:27]} 16. f3 {[%emt 0:
00:00]} b5 {[%emt 0:06:51]} 17. Ne4 {[%emt 0:01:17]} Nxe4 {[%emt 0:01:58]} 18.
fxe4 {[%emt 0:00:09]} Nf6 {[%emt 0:02:19]} 19. Bd3 {[%emt 0:00:50]} Qb6 {
[%emt 0:02:28]} 20. Rhg1 {[%emt 0:02:17]} b4 {[%emt 0:06:28]} 21. g4 {[%emt 0:
00:00]} g6 {[%emt 0:09:15]} 22. g5 {[%emt 0:02:05]} hxg5 {[%emt 0:00:57]} 23.
Bxg5 {[%emt 0:00:17]} a5 {[%emt 0:08:48]} 24. Rgf1 {[%emt 0:04:04]} Nh7 {
[%emt 0:04:31]} 25. Bxe7 {[%emt 0:00:00]} Kxe7 {[%emt 0:01:57]} 26. cxb4 {
[%emt 0:00:05]} Qxb4 {[%emt 0:01:08]} 27. Qxb4+ {[%emt 0:00:23]} axb4 {[%emt 0:
00:00]} 28. e5 {[%emt 0:00:16]} Nf8 {[%emt 0:02:59]} 29. Rf4 {[%emt 0:00:30]}
Nd7 {[%emt 0:00:30]} 30. b3 {[%emt 0:00:30]} Nb6 {[%emt 0:00:30]} 31. Be4 {
[%emt 0:03:25]} Nd5 {[%emt 0:03:36]} 32. Bxd5 {[%emt 0:00:30]} cxd5 {[%emt 0:
00:00]} 33. Rc1 {[%emt 0:00:18]} Rac8 {[%emt 0:00:46]} 34. Rxc8 {[%emt 0:00:38]
} Rxc8 {[%emt 0:00:09]} 35. Rf3 {[%emt 0:00:05]} Rh8 {[%emt 0:02:55]} 36. Rf4 {
[%emt 0:05:02]} Rh5 {[%emt 0:04:27]} 37. Kc2 {[%emt 0:01:31]} Rh8 {[%emt 0:00:
00]} 38. Kb2 {[%emt 0:01:42]} Rc8 {[%emt 0:00:51]} 39. a3 {[%emt 0:00:41]}
bxa3+ {[%emt 0:09:06]} 40. Kxa3 {[%emt 0:00:10]} Rc3 {[%emt 0:00:55]} 41. Ka4 {
[%emt 0:32:14]} Re3 {[%emt 0:32:26]} 42. b4 {[%emt 0:00:47]} Re4 {[%emt 0:00:
00]} 43. Rxe4 {[%emt 0:00:41]} dxe4 {[%emt 0:00:08]} 44. Kb3 {[%emt 0:00:08]}
Kd7 {[%emt 0:01:12]} 45. b5 {[%emt 0:03:47]} Kc7 {[%emt 0:00:43]} 46. Kc2 {
[%emt 0:00:18]} Kb6 {[%emt 0:00:56]} 47. Kd2 {[%emt 0:00:09]} Kxb5 {[%emt 0:00:
00]} 48. Ke3 {[%emt 0:00:08]} Kb4 {[%emt 0:00:47]} 49. Kf4 {[%emt 0:00:32]} Kc3
{[%emt 0:00:00]} 50. Kxe4 {[%emt 0:00:00]} Kc4 {[%emt 0:00:00]} 51. Ke3 {
[%emt 0:00:00]} Kc3 {[%emt 0:00:00]} 52. Ke4 {[%emt 0:00:00]} Kc4 {[%emt 0:00:
00]} 53. Ke3 {[%emt 0:00:00]} Kc3 {[%emt 0:00:00]} 54. Ke4 {[%emt 0:00:00]} Kc4
{[%emt 0:00:00]} 55. Ke3 {[%emt 0:00:00]} Kc3 {[%emt 0:00:00]} 56. Ke4 {
[%emt 0:01:02]} 1/2-1/2

[Event "44th Chess Olympiad Women 2022"]
[Site "Chennai"]
[Date "2022.08.08"]
[Round "10.55"]
[White "Cho, Hung-Ling"]
[Black "Cho, Yeonhee"]
[Result "1/2-1/2"]
[WhiteElo "1576"]
[BlackElo "1427"]
[Annotator "NA RC"]
[PlyCount "89"]
[EventDate "2022.??.??"]
[TimeControl "60"]

1. e4 {[%emt 0:00:02]} e5 {[%emt 0:00:05]} 2. Nf3 {[%emt 0:00:04]} Nc6 {
[%emt 0:00:04]} 3. Bc4 {[%emt 0:00:05]} Bc5 {[%emt 0:00:07]} 4. d3 {[%emt 0:00:
00]} Nf6 {[%emt 0:00:10]} 5. Nc3 {[%emt 0:00:05]} d6 {[%emt 0:00:34]} 6. Na4 {
[%emt 0:00:06]} Bb6 {[%emt 0:00:52]} 7. a3 {[%emt 0:00:02]} h6 {[%emt 0:00:17]}
8. c3 {[%emt 0:00:18]} O-O {[%emt 0:00:52]} 9. Nxb6 {[%emt 0:01:12]} axb6 {
[%emt 0:00:05]} 10. Qe2 {[%emt 0:01:43]} Be6 {[%emt 0:25:24]} 11. Bxe6 {
[%emt 0:00:10]} fxe6 {[%emt 0:00:04]} 12. O-O {[%emt 0:00:09]} Qe8 {[%emt 0:00:
00]} 13. Re1 {[%emt 0:01:55]} Nh5 {[%emt 0:06:11]} 14. g3 {[%emt 0:13:44]} Qf7
{[%emt 0:15:56]} 15. Nh4 {[%emt 0:05:00]} Rae8 {[%emt 0:02:08]} 16. Rf1 {
[%emt 0:07:51]} g5 {[%emt 0:18:13]} 17. Ng2 {[%emt 0:04:17]} Qg6 {[%emt 0:00:
00]} 18. Bd2 {[%emt 0:12:50]} Re7 {[%emt 0:01:59]} 19. Rad1 {[%emt 0:18:10]}
Nf6 {[%emt 0:04:44]} 20. b4 {[%emt 0:07:13]} Ref7 {[%emt 0:02:47]} 21. f3 {
[%emt 0:16:36]} Qh5 {[%emt 0:03:35]} 22. Rde1 {[%emt 0:08:09]} Nh7 {[%emt 0:00:
00]} 23. f4 {[%emt 0:01:16]} Qxe2 {[%emt 0:00:04]} 24. Rxe2 {[%emt 0:00:02]}
exf4 {[%emt 0:00:41]} 25. gxf4 {[%emt 0:00:46]} gxf4 {[%emt 0:00:18]} 26. Rxf4
{[%emt 0:00:34]} Ne5 {[%emt 0:01:06]} 27. Rxf7 {[%emt 0:01:02]} Nxf7 {[%emt 0:
00:00]} 28. Nf4 {[%emt 0:00:25]} Re8 {[%emt 0:00:58]} 29. Rg2+ {[%emt 0:00:17]}
Kh8 {[%emt 0:00:30]} 30. Ng6+ {[%emt 0:00:41]} Kg7 {[%emt 0:00:07]} 31. Ne5+ {
[%emt 0:00:31]} Kf6 {[%emt 0:00:11]} 32. Nxf7 {[%emt 0:00:09]} Kxf7 {[%emt 0:
00:00]} 33. Bxh6 {[%emt 0:00:05]} Rg8 {[%emt 0:01:18]} 34. Rxg8 {[%emt 0:00:03]
} Kxg8 {[%emt 0:00:05]} 35. Kf2 {[%emt 0:00:58]} b5 {[%emt 0:01:05]} 36. Kf3 {
[%emt 0:01:05]} Kf7 {[%emt 0:00:26]} 37. d4 {[%emt 0:00:46]} d5 {[%emt 0:00:35]
} 38. exd5 {[%emt 0:00:33]} exd5 {[%emt 0:00:02]} 39. h4 {[%emt 0:00:23]} Kg6 {
[%emt 0:00:58]} 40. Bf4 {[%emt 0:00:28]} c6 {[%emt 0:00:05]} 41. Bg3 {[%emt 0:
00:00]} Nf6 {[%emt 0:13:13]} 42. Kf4 {[%emt 0:02:59]} Nh5+ {[%emt 0:01:20]} 43.
Kg4 {[%emt 0:00:22]} Nf6+ {[%emt 0:00:06]} 44. Kf4 {[%emt 0:05:02]} Nh5+ {
[%emt 0:01:30]} 45. Kf3 {[%emt 0:01:28]} 1/2-1/2